[Event "EYCC Girls-U10 2019"]
[Site "Bratislava"]
[Date "2019.08.06"]
[Round "5.4"]
[White "Iudina, Veronika"]
[Black "Kirtadze, Anastasia"]
[Result "1-0"]
[ECO "C02"]
[WhiteElo "1357"]
[BlackElo "1532"]
[Annotator "NA"]
[PlyCount "117"]
[EventDate "2019.08.02"]
[EventType "swiss"]
[EventCountry "SVK"]
[SourceTitle "playchess.com"]
[Source "ChessBase"]
[SourceQuality "1"]
[TimeControl "40/5400+30:1800+30"]

1. e4 e6 {[%emt 0:00:00]} 2. d4 {[%emt 0:00:00]} d5 {[%emt 0:00:01]} 3. e5 {[%emt 0:00:07]} c5 {[%emt 0:00:08]} 4. c3 {[%emt 0:00:27]} Nc6 {[%emt 0:00:52]} 5. Nf3 {[%emt 0:00:22]} Qb6 {[%emt 0:00:16]} 6. a3 {[%emt 0:00:33]} c4 {[%emt 0:00:31]} 7. Nbd2 {[%emt 0:00:51]} Na5 {[%emt 0:01:22]} 8. g3 {[%emt 0:02:22]} Bd7 {[%emt 0:00:44]} 9. a4 {[%emt 0:02:41]} Ne7 {[%emt 0:02:15]} 10. Bh3 {[%emt 0:04:12]} h6 {[%emt 0:03:32]} 11. O-O {[%emt 0:03:12]} g5 {[%emt 0:02:43]} 12. Ne1 {[%emt 0:14:50]} h5 {[%emt 0:02:04]} 13. Nc2 {[%emt 0:05:45]} Ng6 {[%emt 0:02:55]} 14. Ne3 {[%emt 0:03:56]} O-O-O {[%emt 0:08:56]} 15. b4 {[%emt 0:05:42]} cxb3 {[%emt 0:00:36]} 16. Bb2 {[%emt 0:00:50]} g4 {[%emt 0:01:31]} 17. Bg2 {[%emt 0:00:23]} Bh6 {[%emt 0:00:37]} 18. c4 {[%emt 0:06:49]} Bxe3 {[%emt 0:00:57]} 19. fxe3 {[%emt 0:00:29]} Nxc4 {[%emt 0:00:32]} 20. Nxc4 {[%emt 0:00:54]} dxc4 {[%emt 0:00:07]} 21. Rxf7 {[%emt 0:01:51]} Bc6 {[%emt 0:01:06]} 22. a5 {[%emt 0:02:04]} Qa6 {[%emt 0:00:48]} 23. Bxc6 {[%emt 0:01:16]} bxc6 {[%emt 0:14:15]} 24. Qb1 {[%emt 0:04:48]} Nf8 {[%emt 0:03:03]} 25. Ba3 {[%emt 0:01:56]} Nd7 {[%emt 0:01:16]} 26. Qg6 {[%emt 0:04:23]} c3 {[%emt 0:08:16]} 27. Rb1 {[%emt 0:06:07]} Qc4 {[%emt 0:07:28]} 28. Qe4 {[%emt 0:04:30]} b2 {[%emt 0:03:35]} 29. Rf2 {[%emt 0:03:51]} h4 {[%emt 0:12:29]} 30. Bxb2 {[%emt 0:01:54]} hxg3 {[%emt 0:04:51]} 31. Rc2 {[%emt 0:03:27]} gxh2+ {[%emt 0:00:25]} 32. Kh1 {[%emt 0:02:29]} Rdf8 {[%emt 0:06:58]} 33. Qg2 {[%emt 0:01:19]} Qd5 {[%emt 0:00:21]} 34. Qxd5 {[%emt 0:02:03]} exd5 {[%emt 0:00:07]} 35. Bxc3 {[%emt 0:01:05]} g3 {[%emt 0:06:05]} 36. Bb4 {[%emt 0:00:57]} Rfg8 {[%emt 0:01:01]} 37. Rxc6+ {[%emt 0:00:47]} Kb7 {[%emt 0:00:08]} 38. Rc2 {[%emt 0:00:21]} Rc8 {[%emt 0:01:14]} 39. Bf8+ {[%emt 0:00:00]} Nb6 {[%emt 0:00:00]} 40. Bc5 {[%emt 0:00:00]} Rh6 {[%emt 0:00:00]} 41. axb6 {[%emt 0:01:09]} axb6 {[%emt 0:01:23]} 42. Rcb2 {[%emt 0:00:42]} Rcc6 {[%emt 0:00:46]} 43. Rg2 {[%emt 0:02:10]} Rhg6 {[%emt 0:00:36]} 44. Bb4 {[%emt 0:01:31]} Ka6 {[%emt 0:01:34]} 45. Be1 {[%emt 0:01:24]} Rg4 {[%emt 0:00:35]} 46. Bxg3 {[%emt 0:01:43]} Rcg6 {[%emt 0:00:21]} 47. Ra2+ {[%emt 0:00:16]} Kb7 {[%emt 0:00:06]} 48. Bxh2 {[%emt 0:00:29]} Rh6 {[%emt 0:00:11]} 49. Rb5 {[%emt 0:01:26]} Kc6 {[%emt 0:00:06]} 50. Rab2 {[%emt 0:00:37]} Kb7 {[%emt 0:00:41]} 51. Rxd5 {[%emt 0:00:35]} Re4 {[%emt 0:00:08]} 52. Rb3 {[%emt 0:01:30]} Rh3 {[%emt 0:00:10]} 53. Rd6 {[%emt 0:00:51]} Rhxe3 {[%emt 0:00:40]} 54. Rdxb6+ {[%emt 0:00:36]} Kc7 {[%emt 0:00:11]} 55. e6+ {[%emt 0:00:56]} Kd8 {[%emt 0:00:16]} 56. Rxe3 {[%emt 0:00:36]} Rxe3 {[%emt 0:00:06]} 57. d5 {[%emt 0:00:25]} Rd3 {[%emt 0:00:06]} 58. Bd6 {[%emt 0:00:41]} Rxd5 {[%emt 0:00:23]} 59. Rb8# {[%emt 0:00:04]} 1-0

[Event "EYCC Girls-U10 2019"]
[Site "Bratislava"]
[Date "2019.08.06"]
[Round "5.5"]
[White "Eros, Vivien"]
[Black "Stoll, Lucia"]
[Result "0-1"]
[ECO "D35"]
[WhiteElo "1251"]
[BlackElo "1403"]
[Annotator "NA"]
[PlyCount "74"]
[EventDate "2019.08.02"]
[EventType "swiss"]
[EventCountry "SVK"]
[SourceTitle "playchess.com"]
[Source "ChessBase"]
[SourceQuality "1"]
[TimeControl "40/5400+30:1800+30"]

1. d4 {[%emt 0:00:00]} d5 {[%emt 0:00:00]} 2. c4 {[%emt 0:00:00]} e6 {[%emt 0:00:00]} 3. Nc3 {[%emt 0:00:00]} Nf6 {[%emt 0:00:18]} 4. cxd5 {[%emt 0:00:23]} exd5 {[%emt 0:00:23]} 5. Bg5 {[%emt 0:00:10]} Be7 {[%emt 0:00:52]} 6. e3 {[%emt 0:02:33]} c6 {[%emt 0:00:51]} 7. Bd3 {[%emt 0:00:20]} Nbd7 {[%emt 0:00:39]} 8. Qc2 {[%emt 0:00:49]} Nf8 {[%emt 0:00:45]} 9. Nge2 {[%emt 0:01:42]} Ne6 {[%emt 0:00:27]} 10. Bh4 {[%emt 0:00:51]} g6 {[%emt 0:01:42]} 11. O-O {[%emt 0:03:19]} O-O {[%emt 0:00:28]} 12. f3 {[%emt 0:01:39]} b5 {[%emt 0:00:49]} 13. a3 {[%emt 0:01:16]} a5 {[%emt 0:01:30]} 14. Bf2 {[%emt 0:37:27]} Bd7 {[%emt 0:06:52]} 15. e4 {[%emt 0:03:04]} Rc8 {[%emt 0:04:37]} 16. e5 {[%emt 0:12:04]} Ne8 {[%emt 0:02:57]} 17. f4 {[%emt 0:01:30]} N6g7 {[%emt 0:06:25]} 18. Ng3 {[%emt 0:02:21]} Bh4 {[%emt 0:01:51]} 19. Nce2 {[%emt 0:00:28]} h5 {[%emt 0:11:46]} 20. Be3 {[%emt 0:04:09]} Bxg3 {[%emt 0:01:13]} 21. Nxg3 {[%emt 0:00:19]} h4 {[%emt 0:00:12]} 22. Ne2 {[%emt 0:02:31]} Bf5 23. Bxf5 {[%emt 0:05:28]} Nxf5 {[%emt 0:00:43]} 24. Bd2 {[%emt 0:01:00]} Neg7 {[%emt 0:03:21]} 25. g4 {[%emt 0:01:00]} hxg3 {[%emt 0:00:56]} 26. hxg3 {[%emt 0:00:07]} Ne6 {[%emt 0:00:40]} 27. g4 {[%emt 0:01:39]} Nfxd4 {[%emt 0:00:48]} 28. Nxd4 {[%emt 0:00:02]} Nxd4 {[%emt 0:00:00]} 29. Qd3 {[%emt 0:00:10]} Ne6 {[%emt 0:01:47]} 30. Qh3 {[%emt 0:01:00]} Kg7 {[%emt 0:01:17]} 31. g5 {[%emt 0:00:31]} Rh8 {[%emt 0:00:36]} 32. Qg4 {[%emt 0:01:15]} Nd4 {[%emt 0:01:28]} 33. Rab1 {[%emt 0:07:14]} Nf5 {[%emt 0:01:36]} 34. Kg2 {[%emt 0:04:20]} b4 {[%emt 0:01:28]} 35. a4 {[%emt 0:00:46]} c5 {[%emt 0:00:34]} 36. Rh1 {[%emt 0:01:01]} Qd7 {[%emt 0:00:09]} 37. b3 {[%emt 0:01:47]} Ne3+ {[%emt 0:00:13]} 0-1

[Event "EYCC Girls-U10 2019"]
[Site "Bratislava"]
[Date "2019.08.06"]
[Round "5.6"]
[White "Zavivaeva, Evelina"]
[Black "Fedorova, Olesya"]
[Result "1/2-1/2"]
[ECO "A48"]
[WhiteElo "1302"]
[BlackElo "1516"]
[Annotator "NA"]
[PlyCount "138"]
[EventDate "2019.08.02"]
[EventType "swiss"]
[EventCountry "SVK"]
[SourceTitle "playchess.com"]
[Source "ChessBase"]
[SourceQuality "1"]
[TimeControl "40/5400+30:1800+30"]

1. d4 {[%emt 0:00:00]} Nf6 {[%emt 0:00:00]} 2. Nf3 {[%emt 0:00:09]} g6 {[%emt 0:00:00]} 3. Bg5 {[%emt 0:00:34]} Bg7 {[%emt 0:00:01]} 4. Nbd2 {[%emt 0:00:30]} O-O {[%emt 0:00:20]} 5. e4 {[%emt 0:01:10]} d6 {[%emt 0:00:16]} 6. Be2 {[%emt 0:00:35]} c5 {[%emt 0:00:21]} 7. dxc5 {[%emt 0:00:51]} dxc5 {[%emt 0:00:44]} 8. O-O {[%emt 0:01:04]} h6 {[%emt 0:00:58]} 9. Bh4 {[%emt 0:01:10]} Nc6 {[%emt 0:00:36]} 10. c3 {[%emt 0:00:27]} Be6 {[%emt 0:07:42]} 11. Qc2 {[%emt 0:01:12]} Qb6 {[%emt 0:01:34]} 12. Rad1 {[%emt 0:07:36]} g5 {[%emt 0:06:34]} 13. Bg3 {[%emt 0:00:35]} Nh5 {[%emt 0:02:48]} 14. Rfe1 {[%emt 0:09:49]} Nxg3 {[%emt 0:01:09]} 15. hxg3 {[%emt 0:00:17]} Rfd8 {[%emt 0:00:39]} 16. Bc4 {[%emt 0:01:32]} Bxc4 {[%emt 0:04:11]} 17. Nxc4 {[%emt 0:00:38]} Qa6 {[%emt 0:01:04]} 18. b3 {[%emt 0:01:35]} b5 {[%emt 0:02:07]} 19. Ne3 {[%emt 0:01:26]} e6 {[%emt 0:02:09]} 20. g4 {[%emt 0:21:34]} Qa5 {[%emt 0:03:26]} 21. Rc1 {[%emt 0:10:04]} Rd7 {[%emt 0:09:07]} 22. a3 {[%emt 0:01:20]} Rad8 {[%emt 0:02:59]} 23. c4 {[%emt 0:10:01]} Nd4 {[%emt 0:05:46]} 24. Nxd4 {[%emt 0:04:35]} cxd4 {[%emt 0:00:21]} 25. Nf1 {[%emt 0:01:12]} Qxa3 {[%emt 0:08:19]} 26. Qd3 {[%emt 0:01:10]} bxc4 {[%emt 0:01:28]} 27. Rxc4 {[%emt 0:02:04]} Rb7 {[%emt 0:01:56]} 28. Nd2 {[%emt 0:00:49]} Qd6 {[%emt 0:01:39]} 29. g3 {[%emt 0:02:13]} Rb4 {[%emt 0:03:06]} 30. e5 {[%emt 0:03:31]} Qb6 {[%emt 0:01:38]} 31. Rxb4 {[%emt 0:03:22]} Qxb4 {[%emt 0:00:14]} 32. Nf3 {[%emt 0:01:11]} Qc3 {[%emt 0:04:19]} 33. Rd1 {[%emt 0:04:01]} Rd5 {[%emt 0:01:26]} 34. Qxc3 {[%emt 0:05:03]} dxc3 {[%emt 0:00:14]} 35. Rc1 {[%emt 0:00:08]} Rc5 {[%emt 0:03:50]} 36. Kf1 {[%emt 0:01:05]} Kf8 {[%emt 0:00:50]} 37. Ke2 {[%emt 0:01:58]} Bxe5 {[%emt 0:02:00]} 38. b4 {[%emt 0:01:41]} Rd5 {[%emt 0:00:31]} 39. Nxe5 {[%emt 0:00:13]} Rxe5+ {[%emt 0:00:08]} 40. Kd3 {[%emt 0:00:00]} f5 {[%emt 0:00:00]} 41. Ra1 {[%emt 0:10:25]} fxg4 {[%emt 0:11:24]} 42. Rxa7 {[%emt 0:07:52]} Rf5 {[%emt 0:01:00]} 43. Rh7 {[%emt 0:02:56]} Rf3+ {[%emt 0:07:57]} 44. Kc2 {[%emt 0:00:12]} Rxf2+ {[%emt 0:00:48]} 45. Kxc3 {[%emt 0:00:03]} Rf3+ {[%emt 0:00:57]} 46. Kd4 {[%emt 0:01:37]} Rxg3 {[%emt 0:00:29]} 47. Rxh6 {[%emt 0:00:24]} Ke7 {[%emt 0:01:16]} 48. Rg6 {[%emt 0:01:46]} Rg1 {[%emt 0:01:54]} 49. Rxg5 {[%emt 0:01:35]} g3 {[%emt 0:00:51]} 50. Ke3 {[%emt 0:01:14]} Kd6 {[%emt 0:03:32]} 51. b5 {[%emt 0:01:00]} Rb1 {[%emt 0:03:10]} 52. Rxg3 {[%emt 0:01:43]} Rxb5 {[%emt 0:00:10]} 53. Rg8 {[%emt 0:03:29]} Rh5 {[%emt 0:01:00]} 54. Rb8 {[%emt 0:01:03]} Rh4 {[%emt 0:00:58]} 55. Rb5 {[%emt 0:01:18]} Ke7 {[%emt 0:01:05]} 56. Ra5 {[%emt 0:02:06]} Kf6 {[%emt 0:00:17]} 57. Rb5 {[%emt 0:00:30]} e5 {[%emt 0:00:26]} 58. Rb8 {[%emt 0:00:21]} Rf4 {[%emt 0:02:13]} 59. Rf8+ {[%emt 0:00:33]} Kg5 {[%emt 0:00:11]} 60. Rxf4 {[%emt 0:00:36]} exf4+ {[%emt 0:00:16]} 61. Kf3 {[%emt 0:00:16]} Kf5 {[%emt 0:00:06]} 62. Kf2 {[%emt 0:00:07]} Ke4 {[%emt 0:00:32]} 63. Ke2 {[%emt 0:00:09]} f3+ {[%emt 0:00:58]} 64. Kf2 {[%emt 0:00:06]} Kf4 {[%emt 0:00:04]} 65. Kf1 {[%emt 0:00:09]} Kg4 {[%emt 0:00:03]} 66. Kf2 {[%emt 0:00:13]} Kf4 {[%emt 0:00:06]} 67. Kf1 {[%emt 0:00:04]} Ke3 {[%emt 0:00:07]} 68. Ke1 {[%emt 0:00:06]} f2+ {[%emt 0:00:04]} 69. Kf1 {[%emt 0:00:07]} Kf3 {[%emt 0:00:06]} 1/2-1/2

[Event "EYCC Girls-U10 2019"]
[Site "Bratislava"]
[Date "2019.08.06"]
[Round "5.7"]
[White "Sosovickova, Martina"]
[Black "Artissi, Sabina"]
[Result "1/2-1/2"]
[ECO "B43"]
[WhiteElo "1200"]
[BlackElo "1419"]
[Annotator "NA"]
[PlyCount "85"]
[EventDate "2019.08.02"]
[EventType "swiss"]
[EventCountry "SVK"]
[SourceTitle "playchess.com"]
[Source "ChessBase"]
[SourceQuality "1"]
[TimeControl "40/5400+30:1800+30"]

1. e4 c5 2. Nf3 e6 3. d4 cxd4 4. Nxd4 a6 5. Nc3 b5 6. Bd3 Bc5 7. Nb3 Bb4 8. Bd2 Bb7 9. O-O Nc6 10. Qe2 Nge7 11. Rad1 O-O 12. a3 Bd6 13. f4 Bc7 14. Be3 d5 15. Qf2 f5 16. exd5 exd5 17. Be2 b4 18. axb4 Nxb4 19. Bf3 Kh8 20. Rfe1 Ng6 21. Bc5 Bd6 22. Bxd6 Qxd6 23. g3 Rad8 24. Nc5 Bc8 25. Nxd5 Nxd5 26. Bxd5 Qf6 27. b3 Ne7 28. Bc4 Rxd1 29. Rxd1 Nc6 30. Nxa6 Bxa6 31. Bxa6 Nb4 32. Bd3 Nxd3 33. Rxd3 Qa1+ 34. Kg2 Qa8+ 35. Qf3 Qa2 36. Rd2 h6 37. Qd3 Qa5 38. Qd5 Qc3 39. Re2 Qf6 40. Qe5 Qc6+ 41. Kf2 Qh1 42. h4 Qh2+ 43. Kf3 1/2-1/2

[Event "EYCC Girls-U10 2019"]
[Site "Bratislava"]
[Date "2019.08.06"]
[Round "5.8"]
[White "Shatil, Or"]
[Black "Stefan, Iulia-Cristiana"]
[Result "1-0"]
[ECO "B02"]
[WhiteElo "1185"]
[BlackElo "1389"]
[Annotator "NA"]
[PlyCount "65"]
[EventDate "2019.08.02"]
[EventType "swiss"]
[EventCountry "SVK"]
[SourceTitle "playchess.com"]
[Source "ChessBase"]
[SourceQuality "1"]
[TimeControl "40/5400+30:1800+30"]

1. e4 Nf6 2. e5 Nd5 3. Nc3 Nb6 4. d4 d6 5. f4 dxe5 6. fxe5 g6 7. Nf3 Bg7 8. Bd3 O-O 9. Be3 f6 10. Qd2 Bg4 11. exf6 exf6 12. O-O-O c6 13. Bh6 Be6 14. h4 Nd5 15. Nxd5 Qxd5 16. Bxg7 Kxg7 17. c4 Qd7 18. h5 g5 19. h6+ Kh8 20. Rdf1 Na6 21. Qc3 Kg8 22. Rh5 Bf7 23. Ne5 Qd8 24. Nxf7 Rxf7 25. c5 Nc7 26. Bc4 Nd5 27. Qf3 Kh8 28. Rxg5 Nc7 29. Bxf7 fxg5 30. Qe4 Ne8 31. Qe5+ Nf6 32. Rxf6 Qb8 33. Rd6# 1-0

[Event "EYCC Girls-U10 2019"]
[Site "Bratislava"]
[Date "2019.08.06"]
[Round "5.9"]
[White "Liashkevich, Lizaveta"]
[Black "Ismayilova, Khanim"]
[Result "1-0"]
[ECO "D38"]
[WhiteElo "1406"]
[BlackElo "1265"]
[Annotator "NA"]
[PlyCount "113"]
[EventDate "2019.08.02"]
[EventType "swiss"]
[EventCountry "SVK"]
[SourceTitle "playchess.com"]
[Source "ChessBase"]
[SourceQuality "1"]
[TimeControl "40/5400+30:1800+30"]

1. d4 Nf6 2. c4 e6 3. Nf3 d5 4. Nc3 Bb4 5. Bd2 O-O 6. a3 Be7 7. Bg5 h6 8. Bh4 Nbd7 9. e3 Nb6 10. cxd5 Nbxd5 11. Bd3 Nxc3 12. bxc3 Nd5 13. Bxe7 Qxe7 14. c4 Nf6 15. O-O c5 16. Qb3 b6 17. d5 exd5 18. cxd5 Bb7 19. e4 Rac8 20. Rfe1 Rfd8 21. Re2 Ng4 22. Rae1 Ne5 23. Nxe5 Qxe5 24. Bc4 Rc7 25. Qe3 Kh8 26. f4 Qd4 27. Qxd4 cxd4 28. Rc2 Re8 29. Kf2 Rec8 30. Rec1 Ba6 31. Bb3 Rxc2+ 32. Rxc2 Rxc2+ 33. Bxc2 Bb5 34. Ke1 Kg8 35. Kd2 Kf8 36. Bd3 Ba4 37. Bc4 f6 38. Kd3 Ke7 39. Kxd4 Kd7 40. e5 fxe5+ 41. fxe5 Ke7 42. Be2 Bd7 43. d6+ Ke8 44. Bc4 Kd8 45. e6 Bc6 46. Bd5 Bb5 47. Ke5 Ke8 48. e7 Bd7 49. Be6 Bc6 50. g3 Bb5 51. h4 Bc6 52. Bc8 Bb5 53. Bf5 Bc4 54. Bg6+ Bf7 55. Bxf7+ Kxf7 56. Kd5 Ke8 57. Kc6 1-0

[Event "EYCC Girls-U10 2019"]
[Site "Bratislava"]
[Date "2019.08.06"]
[Round "5.10"]
[White "Kuznecova, Marija"]
[Black "Prochaieva, Alina"]
[Result "0-1"]
[ECO "A45"]
[WhiteElo "1375"]
[BlackElo "1247"]
[Annotator "NA"]
[PlyCount "110"]
[EventDate "2019.08.02"]
[EventType "swiss"]
[EventCountry "SVK"]
[SourceTitle "playchess.com"]
[Source "ChessBase"]
[SourceQuality "1"]
[TimeControl "40/5400+30:1800+30"]

1. d4 {[%emt 0:00:00]} Nf6 {[%emt 0:00:00]} 2. Bf4 {[%emt 0:00:00]} c5 {[%emt 0:00:00]} 3. e3 {[%emt 0:00:00]} Qb6 {[%emt 0:00:35]} 4. Na3 {[%emt 0:00:14]} a6 {[%emt 0:00:54]} 5. Nc4 {[%emt 0:00:17]} Qa7 {[%emt 0:09:34]} 6. c3 {[%emt 0:02:48]} b5 {[%emt 0:09:16]} 7. Nd2 {[%emt 0:02:07]} c4 {[%emt 0:11:08]} 8. a4 {[%emt 0:00:32]} Qb7 {[%emt 0:11:52]} 9. Qc2 {[%emt 0:03:03]} d5 {[%emt 0:05:34]} 10. b3 {[%emt 0:03:31]} g6 {[%emt 0:07:51]} 11. Qa2 {[%emt 0:01:12]} bxa4 {[%emt 0:06:48]} 12. bxc4 {[%emt 0:00:32]} Bd7 {[%emt 0:12:50]} 13. Rb1 {[%emt 0:00:29]} Qc8 {[%emt 0:04:16]} 14. cxd5 {[%emt 0:01:28]} Bf5 {[%emt 0:04:36]} 15. Rxb8 {[%emt 0:01:38]} Rxb8 {[%emt 0:00:42]} 16. Bxb8 {[%emt 0:00:12]} Qxb8 {[%emt 0:01:13]} 17. Qxa4+ {[%emt 0:01:08]} Bd7 {[%emt 0:01:06]} 18. Qxa6 {[%emt 0:02:10]} Nxd5 {[%emt 0:02:59]} 19. Qa5 {[%emt 0:02:03]} Nf6 {[%emt 0:01:29]} 20. Ngf3 {[%emt 0:01:10]} Ne4 {[%emt 0:03:02]} 21. Bc4 {[%emt 0:03:36]} Bg7 {[%emt 0:02:11]} 22. O-O {[%emt 0:00:55]} Nd6 {[%emt 0:00:57]} 23. Rb1 {[%emt 0:00:46]} Qc8 {[%emt 0:01:00]} 24. Qa7 {[%emt 0:04:37]} O-O {[%emt 0:00:31]} 25. Ba6 {[%emt 0:00:37]} Qc6 {[%emt 0:01:17]} 26. Ne5 {[%emt 0:11:03]} Bxe5 {[%emt 0:00:33]} 27. dxe5 {[%emt 0:00:08]} Ra8 {[%emt 0:00:27]} 28. Rb8+ {[%emt 0:00:06]} Rxb8 {[%emt 0:00:32]} 29. Qxb8+ {[%emt 0:00:05]} Ne8 {[%emt 0:00:21]} 30. Qb5 {[%emt 0:01:04]} Qxb5 {[%emt 0:00:17]} 31. Bxb5 {[%emt 0:00:09]} Bxb5 {[%emt 0:00:06]} 32. c4 {[%emt 0:00:03]} Ba4 {[%emt 0:00:47]} 33. Kf1 {[%emt 0:00:05]} Nc7 {[%emt 0:00:16]} 34. Ke2 {[%emt 0:00:10]} Kf8 {[%emt 0:00:14]} 35. Ne4 {[%emt 0:00:13]} Bc6 {[%emt 0:00:21]} 36. Kd3 {[%emt 0:00:29]} Bxe4+ {[%emt 0:00:22]} 37. Kxe4 {[%emt 0:00:06]} Ke8 {[%emt 0:00:13]} 38. g4 {[%emt 0:00:22]} Kd7 {[%emt 0:00:20]} 39. f4 {[%emt 0:00:09]} Kc6 {[%emt 0:01:11]} 40. f5 {[%emt 0:00:00]} g5 {[%emt 0:00:00]} 41. Kd4 {[%emt 0:01:05]} Na8 {[%emt 0:04:28]} 42. c5 {[%emt 0:01:49]} Nc7 {[%emt 0:00:17]} 43. e4 {[%emt 0:00:10]} e6 {[%emt 0:01:33]} 44. f6 {[%emt 0:00:20]} Na6 {[%emt 0:00:27]} 45. Kc4 {[%emt 0:00:22]} Nxc5 {[%emt 0:00:25]} 46. Kd4 {[%emt 0:00:11]} Nd7 {[%emt 0:00:17]} 47. h3 {[%emt 0:01:13]} h6 {[%emt 0:00:20]} 48. Ke3 {[%emt 0:01:02]} Nxe5 {[%emt 0:00:08]} 49. Kf2 {[%emt 0:00:08]} Nd7 {[%emt 0:00:11]} 50. Ke3 {[%emt 0:00:58]} e5 {[%emt 0:00:29]} 51. Kf3 {[%emt 0:00:13]} Nxf6 {[%emt 0:00:07]} 52. Ke3 {[%emt 0:00:07]} Kc5 {[%emt 0:00:16]} 53. Kd3 {[%emt 0:00:05]} Kb4 {[%emt 0:00:15]} 54. Kd2 {[%emt 0:00:09]} Kc4 {[%emt 0:00:07]} 55. Ke3 {[%emt 0:00:04]} Kc3 {[%emt 0:00:13]} 0-1

[Event "EYCC Girls-U10 2019"]
[Site "Bratislava"]
[Date "2019.08.06"]
[Round "5.11"]
[White "Petrenko, Maryna"]
[Black "Mence, Eline"]
[Result "1-0"]
[ECO "D02"]
[WhiteElo "1335"]
[BlackElo "1162"]
[Annotator "NA"]
[PlyCount "81"]
[EventDate "2019.08.02"]
[EventType "swiss"]
[EventCountry "SVK"]
[SourceTitle "playchess.com"]
[Source "ChessBase"]
[SourceQuality "1"]
[TimeControl "40/5400+30:1800+30"]

1. d4 {[%emt 0:00:00]} d5 {[%emt 0:00:00]} 2. Nf3 {[%emt 0:00:00]} e6 {[%emt 0:00:00]} 3. Bf4 {[%emt 0:00:04]} f5 {[%emt 0:00:22]} 4. e3 {[%emt 0:00:46]} Nf6 {[%emt 0:00:22]} 5. c4 {[%emt 0:00:19]} c6 {[%emt 0:00:10]} 6. Nc3 {[%emt 0:00:26]} Be7 {[%emt 0:00:45]} 7. Bd3 {[%emt 0:01:00]} O-O {[%emt 0:00:42]} 8. O-O {[%emt 0:02:01]} Ne4 {[%emt 0:01:45]} 9. Qc2 {[%emt 0:02:42]} Nd7 {[%emt 0:06:20]} 10. h3 {[%emt 0:21:08]} Bf6 {[%emt 0:05:49]} 11. Bh2 {[%emt 0:11:59]} h5 {[%emt 0:05:12]} 12. Nd2 {[%emt 0:09:52]} Bg5 {[%emt 0:02:39]} 13. Ndxe4 {[%emt 0:06:00]} fxe4 {[%emt 0:00:28]} 14. Be2 {[%emt 0:00:08]} h4 {[%emt 0:02:34]} 15. Rae1 {[%emt 0:09:26]} Rf6 {[%emt 0:06:05]} 16. Qb3 {[%emt 0:04:00]} Nb6 {[%emt 0:02:58]} 17. cxd5 {[%emt 0:07:18]} exd5 {[%emt 0:00:36]} 18. Nxe4 {[%emt 0:00:46]} Re6 {[%emt 0:06:35]} 19. Nd2 {[%emt 0:02:25]} Kh8 {[%emt 0:02:59]} 20. Nf3 {[%emt 0:01:24]} Nd7 {[%emt 0:09:37]} 21. Qd3 {[%emt 0:02:08]} Qf6 {[%emt 0:01:46]} 22. Be5 {[%emt 0:01:41]} Qg6 {[%emt 0:03:48]} 23. Qxg6 {[%emt 0:00:14]} Rxg6 {[%emt 0:00:11]} 24. Bd3 {[%emt 0:00:09]} Re6 {[%emt 0:01:27]} 25. Nxg5 {[%emt 0:00:11]} Re7 {[%emt 0:00:38]} 26. Bd6 {[%emt 0:00:34]} Re8 {[%emt 0:01:20]} 27. Bg6 {[%emt 0:00:08]} Rf8 {[%emt 0:00:41]} 28. Bxf8 {[%emt 0:00:32]} Nxf8 {[%emt 0:00:12]} 29. Bd3 {[%emt 0:00:24]} b6 {[%emt 0:00:41]} 30. f4 {[%emt 0:00:54]} Bb7 {[%emt 0:00:15]} 31. f5 {[%emt 0:00:41]} Nd7 {[%emt 0:00:22]} 32. Nf3 {[%emt 0:00:21]} Nf6 {[%emt 0:00:35]} 33. Nxh4 {[%emt 0:01:36]} Re8 {[%emt 0:00:32]} 34. Ng6+ {[%emt 0:01:00]} Kh7 {[%emt 0:00:25]} 35. Rf4 {[%emt 0:01:26]} Kg8 {[%emt 0:00:22]} 36. e4 {[%emt 0:01:08]} dxe4 {[%emt 0:00:35]} 37. Bc4+ {[%emt 0:00:37]} Nd5 {[%emt 0:00:24]} 38. Rfxe4 {[%emt 0:00:46]} Rd8 {[%emt 0:00:58]} 39. Re8+ {[%emt 0:00:13]} Rxe8 {[%emt 0:00:16]} 40. Rxe8+ {[%emt 0:00:00]} Kf7 {[%emt 0:00:00]} 41. Rf8# {[%emt 0:00:08]} 1-0

[Event "EYCC Girls-U10 2019"]
[Site "Bratislava"]
[Date "2019.08.06"]
[Round "5.12"]
[White "Toth, Timea"]
[Black "Bagas, Ana"]
[Result "1/2-1/2"]
[ECO "A34"]
[WhiteElo "1964"]
[BlackElo "1442"]
[Annotator "NA"]
[PlyCount "79"]
[EventDate "2019.08.02"]
[EventType "swiss"]
[EventCountry "SVK"]
[SourceTitle "playchess.com"]
[Source "ChessBase"]
[SourceQuality "1"]
[TimeControl "40/5400+30:1800+30"]

1. c4 {[%emt 0:00:00]} c5 {[%emt 0:00:00]} 2. Nc3 {[%emt 0:00:00]} Nf6 {[%emt 0:00:00]} 3. g3 {[%emt 0:00:00]} d5 {[%emt 0:00:15]} 4. cxd5 {[%emt 0:00:05]} Nxd5 {[%emt 0:00:08]} 5. Bg2 {[%emt 0:00:25]} Nc7 {[%emt 0:00:26]} 6. e3 {[%emt 0:12:00]} e5 {[%emt 0:03:01]} 7. Qa4+ {[%emt 0:09:25]} Bd7 8. Qb3 {[%emt 0:02:43]} Nc6 {[%emt 0:08:31]} 9. Nb5 {[%emt 0:21:28]} Na5 {[%emt 0:03:15]} 10. Nxc7+ {[%emt 0:00:31]} Qxc7 {[%emt 0:00:18]} 11. Qc2 {[%emt 0:03:23]} Be7 {[%emt 0:05:17]} 12. b4 {[%emt 0:01:31]} Nc6 {[%emt 0:03:25]} 13. bxc5 {[%emt 0:04:26]} Qa5 {[%emt 0:11:29]} 14. Bd5 {[%emt 0:05:24]} Nb4 {[%emt 0:05:56]} 15. Qe4 {[%emt 0:11:29]} Nxd5 {[%emt 0:01:01]} 16. Qxd5 {[%emt 0:00:46]} Bc6 {[%emt 0:00:43]} 17. Qxe5 {[%emt 0:02:09]} f6 {[%emt 0:01:45]} 18. Qh5+ {[%emt 0:03:02]} g6 {[%emt 0:00:10]} 19. Qh6 {[%emt 0:00:06]} Bxh1 {[%emt 0:00:34]} 20. Qg7 {[%emt 0:00:31]} Rf8 {[%emt 0:01:54]} 21. Qxh7 {[%emt 0:00:13]} Bd5 {[%emt 0:01:55]} 22. Qxg6+ {[%emt 0:00:23]} Bf7 {[%emt 0:00:33]} 23. Qe4 {[%emt 0:00:58]} Qxc5 {[%emt 0:01:21]} 24. Qxb7 {[%emt 0:00:32]} Qc8 {[%emt 0:00:54]} 25. Qe4 {[%emt 0:04:22]} Rb8 {[%emt 0:05:34]} 26. Ba3 {[%emt 0:01:15]} Qd7 {[%emt 0:01:04]} 27. Nf3 {[%emt 0:05:30]} Rg8 {[%emt 0:09:31]} 28. Nd4 {[%emt 0:01:55]} Bg6 {[%emt 0:01:24]} 29. Qxe7+ {[%emt 0:00:33]} Qxe7 {[%emt 0:00:26]} 30. Bxe7 {[%emt 0:00:05]} Kxe7 {[%emt 0:04:15]} 31. Nc6+ {[%emt 0:00:05]} Ke6 {[%emt 0:00:36]} 32. Nxb8 {[%emt 0:00:11]} Rxb8 {[%emt 0:00:05]} 33. f4 {[%emt 0:01:17]} Kf5 {[%emt 0:02:13]} 34. h3 Ke4 {[%emt 0:02:50]} 35. Ke2 {[%emt 0:02:23]} Rb2 {[%emt 0:01:23]} 36. a3 {[%emt 0:00:33]} Be8 {[%emt 0:03:46]} 37. g4 {[%emt 0:01:05]} Bb5+ {[%emt 0:01:43]} 38. Ke1 {[%emt 0:00:49]} Bc4 {[%emt 0:06:15]} 39. Rc1 {[%emt 0:02:44]} Bd3 {[%emt 0:01:18]} 40. h4 {[%emt 0:00:00]} 1/2-1/2